{"text_format":"1","workbook":"xlsx","n_sheets":1,"sheets":["EquipmentPlan"],"not_rendered":{"charts":0,"images":1,"macros":1,"external_links":0,"defined_names":134,"comments":1,"pivot_tables":0},"unopened":[],"bounds":{"document_bytes":16777216,"sheet_cells":100000,"rows_first":2000,"rows_last":500,"rows_between":2000,"halvings":0,"cell_chars":16384,"cell_head_chars":4096},"cells_cut":0,"cells_raw":0,"read":"whole","date_system":"1900"}

{"sheet":"EquipmentPlan","index":0,"n_rows":46,"n_cols":104,"rows_kept":46,"cut":false,"hidden":false,"merged":[]}
[]
[]
[]
[]
[]
[]
[]
[]
[]
[]
[]
[]
[]
[]
[]
[null,"L1","L2","L3","L4","L5","L6","L7","L8","L9","L\n10","L\n11","L\n12","Spalte1","Spalte63","Spalte64","Spalte65","Spalte66","Spalte67","Spalte68","Spalte69","Spalte70","Spalte71","Spalte72","Spalte73","Spalte74","Spalte75","Spalte76","Spalte77","Spalte78","Spalte79","Spalte87","Spalte80","Spalte81","Spalte88","Spalte89","Spalte90","Spalte91","Spalte82","Spalte83","Spalte84","Spalte85","Spalte86","Spalte2","Spalte3","Spalte6","Spalte7","Spalte8","Spalte9","Spalte10","Spalte11","Spalte12","Spalte13","Spalte14","Spalte15","Spalte16","Spalte17","Spalte18","Spalte19","Spalte20","Spalte21","Spalte22","Spalte4","Spalte5","Spalte23","Spalte24","Spalte25","Spalte26","Spalte27","Spalte28","Spalte29","Spalte30","Spalte31","Spalte32","Spalte33","Spalte34","Spalte35","Spalte36","Spalte37","Spalte38","Spalte39","Spalte40","Spalte41","Spalte42","Spalte43","Spalte44","Spalte45","Spalte46","Spalte47","Spalte48","Spalte49","Spalte50","Spalte51","Spalte52","Spalte53","Spalte54","Spalte55","Spalte56","Spalte57","Spalte58","Spalte59","Spalte60","Spalte61","Spalte62"]
[null,"Категория 1","Категория 1.1","Категория 1.1.1",null,null,null,null,null,null,null,null,null,null,null,null,null,null,null,null,null,null,null,null,null,null,null,null,null,null,null,null,null,null,"Aa","Bb","Zusatz","Y",null,null,null,null,null,"-",null,"-",null,"-",null,null,null,null,null,null,null,null,null,null,null,null,null,null,null,null,"Test",null,null,null,{"$f":"IF(tblElemente[[#This Row],[Spalte78]]=\"elem\",tblElemente[[#This Row],[Spalte23]]&\" - \"&tblElemente[[#This Row],[Spalte88]]&\" \"&tblElemente[[#This Row],[Spalte89]]&IF(tblElemente[[#This Row],[Spalte90]]=\"\",\"\",\" - \"&tblElemente[[#This Row],[Spalte90]])&IF(tblElemente[[#This Row],[Spalte91]]=\"\",\"\",\" (\"&tblElemente[[#This Row],[Spalte91]]&\")\"),\"\")","v":""}]
[null,"Категория 1","Категория 1.1","Категория 1.1.1",null,null,null,null,null,null,null,null,null,null,null,null,null,null,null,null,null,null,null,null,null,null,null,null,null,null,null,null,null,null,null,null,null,null,null,null,null,null,null,null,null,null,null,null,null,null,null,null,null,null,null,null,null,null,null,null,null,null,null,null,null,null,null,null,{"$f":"IF(tblElemente[[#This Row],[Spalte78]]=\"elem\",tblElemente[[#This Row],[Spalte23]]&\" - \"&tblElemente[[#This Row],[Spalte88]]&\" \"&tblElemente[[#This Row],[Spalte89]]&IF(tblElemente[[#This Row],[Spalte90]]=\"\",\"\",\" - \"&tblElemente[[#This Row],[Spalte90]])&IF(tblElemente[[#This Row],[Spalte91]]=\"\",\"\",\" (\"&tblElemente[[#This Row],[Spalte91]]&\")\"),\"\")","v":""}]
[null,"Категория 1","Категория 1.1","Категория 1.1.1",null,null,null,null,null,null,null,null,null,null,null,null,null,null,null,null,null,null,null,null,null,null,null,null,null,null,null,null,null,null,null,null,null,null,null,null,null,null,null,null,null,null,null,null,null,null,null,null,null,null,null,null,null,null,null,null,null,null,null,null,null,null,null,null,{"$f":"IF(tblElemente[[#This Row],[Spalte78]]=\"elem\",tblElemente[[#This Row],[Spalte23]]&\" - \"&tblElemente[[#This Row],[Spalte88]]&\" \"&tblElemente[[#This Row],[Spalte89]]&IF(tblElemente[[#This Row],[Spalte90]]=\"\",\"\",\" - \"&tblElemente[[#This Row],[Spalte90]])&IF(tblElemente[[#This Row],[Spalte91]]=\"\",\"\",\" (\"&tblElemente[[#This Row],[Spalte91]]&\")\"),\"\")","v":""}]
[null,"Категория 1","Категория 1.1","категория 1.1.2",null,null,null,null,null,null,null,null,null,null,null,null,null,null,null,null,null,null,null,null,null,null,null,null,null,null,null,null,null,null,null,null,null,null,null,null,null,null,null,null,null,null,null,null,null,null,null,null,null,null,null,null,null,null,null,null,null,null,null,null,null,null,null,null,{"$f":"IF(tblElemente[[#This Row],[Spalte78]]=\"elem\",tblElemente[[#This Row],[Spalte23]]&\" - \"&tblElemente[[#This Row],[Spalte88]]&\" \"&tblElemente[[#This Row],[Spalte89]]&IF(tblElemente[[#This Row],[Spalte90]]=\"\",\"\",\" - \"&tblElemente[[#This Row],[Spalte90]])&IF(tblElemente[[#This Row],[Spalte91]]=\"\",\"\",\" (\"&tblElemente[[#This Row],[Spalte91]]&\")\"),\"\")","v":""}]
[null,"Категория 1","Категория 1.1","категория 1.1.2",null,null,null,null,null,null,null,null,null,null,null,null,null,null,null,null,null,null,null,null,null,null,null,null,null,null,null,null,null,null,null,null,null,null,null,null,null,null,null,null,null,null,null,null,null,null,null,null,null,null,null,null,null,null,null,null,null,null,null,null,null,null,null,null,{"$f":"IF(tblElemente[[#This Row],[Spalte78]]=\"elem\",tblElemente[[#This Row],[Spalte23]]&\" - \"&tblElemente[[#This Row],[Spalte88]]&\" \"&tblElemente[[#This Row],[Spalte89]]&IF(tblElemente[[#This Row],[Spalte90]]=\"\",\"\",\" - \"&tblElemente[[#This Row],[Spalte90]])&IF(tblElemente[[#This Row],[Spalte91]]=\"\",\"\",\" (\"&tblElemente[[#This Row],[Spalte91]]&\")\"),\"\")","v":""}]
[null,"Категория 1","Категория 1.1","категория 1.1.3",null,null,null,null,null,null,null,null,null,null,null,null,null,null,null,null,null,null,null,null,null,null,null,null,null,null,null,null,null,null,null,null,null,null,null,null,null,null,null,null,null,null,null,null,null,null,null,null,null,null,null,null,null,null,null,null,null,null,null,null,null,null,null,null,{"$f":"IF(tblElemente[[#This Row],[Spalte78]]=\"elem\",tblElemente[[#This Row],[Spalte23]]&\" - \"&tblElemente[[#This Row],[Spalte88]]&\" \"&tblElemente[[#This Row],[Spalte89]]&IF(tblElemente[[#This Row],[Spalte90]]=\"\",\"\",\" - \"&tblElemente[[#This Row],[Spalte90]])&IF(tblElemente[[#This Row],[Spalte91]]=\"\",\"\",\" (\"&tblElemente[[#This Row],[Spalte91]]&\")\"),\"\")","v":""}]
[null,"Категория 1","Категория 1.2","Категория 1.2.1",null,null,null,null,null,null,null,null,null,null,null,null,null,null,null,null,null,null,null,null,null,null,null,null,null,null,null,null,null,null,null,null,null,null,null,null,null,null,null,null,null,null,null,null,null,null,null,null,null,null,null,null,null,null,null,null,null,null,null,null,null,null,null,null,{"$f":"IF(tblElemente[[#This Row],[Spalte78]]=\"elem\",tblElemente[[#This Row],[Spalte23]]&\" - \"&tblElemente[[#This Row],[Spalte88]]&\" \"&tblElemente[[#This Row],[Spalte89]]&IF(tblElemente[[#This Row],[Spalte90]]=\"\",\"\",\" - \"&tblElemente[[#This Row],[Spalte90]])&IF(tblElemente[[#This Row],[Spalte91]]=\"\",\"\",\" (\"&tblElemente[[#This Row],[Spalte91]]&\")\"),\"\")","v":""}]
[null,"Категория 1","Категория 1.2","Категория 1.2.1",null,null,null,null,null,null,null,null,null,null,null,null,null,null,null,null,null,null,null,null,null,null,null,null,null,null,null,null,null,null,null,null,null,null,null,null,null,null,null,null,null,null,null,null,null,null,null,null,null,null,null,null,null,null,null,null,null,null,null,null,null,null,null,null,{"$f":"IF(tblElemente[[#This Row],[Spalte78]]=\"elem\",tblElemente[[#This Row],[Spalte23]]&\" - \"&tblElemente[[#This Row],[Spalte88]]&\" \"&tblElemente[[#This Row],[Spalte89]]&IF(tblElemente[[#This Row],[Spalte90]]=\"\",\"\",\" - \"&tblElemente[[#This Row],[Spalte90]])&IF(tblElemente[[#This Row],[Spalte91]]=\"\",\"\",\" (\"&tblElemente[[#This Row],[Spalte91]]&\")\"),\"\")","v":""}]
[null,"Категория 1","Категория 1.2","Категория 1.2.1",null,null,null,null,null,null,null,null,null,null,null,null,null,null,null,null,null,null,null,null,null,null,null,null,null,null,null,null,null,null,null,null,null,null,null,null,null,null,null,null,null,null,null,null,null,null,null,null,null,null,null,null,null,null,null,null,null,null,null,null,null,null,null,null,{"$f":"IF(tblElemente[[#This Row],[Spalte78]]=\"elem\",tblElemente[[#This Row],[Spalte23]]&\" - \"&tblElemente[[#This Row],[Spalte88]]&\" \"&tblElemente[[#This Row],[Spalte89]]&IF(tblElemente[[#This Row],[Spalte90]]=\"\",\"\",\" - \"&tblElemente[[#This Row],[Spalte90]])&IF(tblElemente[[#This Row],[Spalte91]]=\"\",\"\",\" (\"&tblElemente[[#This Row],[Spalte91]]&\")\"),\"\")","v":""}]
[null,"Категория 1","Категория 1.3","Категория 1.3.1",null,null,null,null,null,null,null,null,null,null,null,null,null,null,null,null,null,null,null,null,null,null,null,null,null,null,null,null,null,null,null,null,null,null,null,null,null,null,null,null,null,null,null,null,null,null,null,null,null,null,null,null,null,null,null,null,null,null,null,null,null,null,null,null,{"$f":"IF(tblElemente[[#This Row],[Spalte78]]=\"elem\",tblElemente[[#This Row],[Spalte23]]&\" - \"&tblElemente[[#This Row],[Spalte88]]&\" \"&tblElemente[[#This Row],[Spalte89]]&IF(tblElemente[[#This Row],[Spalte90]]=\"\",\"\",\" - \"&tblElemente[[#This Row],[Spalte90]])&IF(tblElemente[[#This Row],[Spalte91]]=\"\",\"\",\" (\"&tblElemente[[#This Row],[Spalte91]]&\")\"),\"\")","v":""}]
[null,"Категория 1","Категория 1.3","Категория 1.3.2",null,null,null,null,null,null,null,null,null,null,null,null,null,null,null,null,null,null,null,null,null,null,null,null,null,null,null,null,null,null,null,null,null,null,null,null,null,null,null,null,null,null,null,null,null,null,null,null,null,null,null,null,null,null,null,null,null,null,null,null,null,null,null,null,{"$f":"IF(tblElemente[[#This Row],[Spalte78]]=\"elem\",tblElemente[[#This Row],[Spalte23]]&\" - \"&tblElemente[[#This Row],[Spalte88]]&\" \"&tblElemente[[#This Row],[Spalte89]]&IF(tblElemente[[#This Row],[Spalte90]]=\"\",\"\",\" - \"&tblElemente[[#This Row],[Spalte90]])&IF(tblElemente[[#This Row],[Spalte91]]=\"\",\"\",\" (\"&tblElemente[[#This Row],[Spalte91]]&\")\"),\"\")","v":""}]
[null,"Категория 1","Категория 1.3","Категория 1.3.2",null,null,null,null,null,null,null,null,null,null,null,null,null,null,null,null,null,null,null,null,null,null,null,null,null,null,null,null,null,null,null,null,null,null,null,null,null,null,null,null,null,null,null,null,null,null,null,null,null,null,null,null,null,null,null,null,null,null,null,null,null,null,null,null,{"$f":"IF(tblElemente[[#This Row],[Spalte78]]=\"elem\",tblElemente[[#This Row],[Spalte23]]&\" - \"&tblElemente[[#This Row],[Spalte88]]&\" \"&tblElemente[[#This Row],[Spalte89]]&IF(tblElemente[[#This Row],[Spalte90]]=\"\",\"\",\" - \"&tblElemente[[#This Row],[Spalte90]])&IF(tblElemente[[#This Row],[Spalte91]]=\"\",\"\",\" (\"&tblElemente[[#This Row],[Spalte91]]&\")\"),\"\")","v":""}]
[null,"Категория 1","Категория 1.3","Категория 1.3.3",null,null,null,null,null,null,null,null,null,null,null,null,null,null,null,null,null,null,null,null,null,null,null,null,null,null,null,null,null,null,null,null,null,null,null,null,null,null,null,null,null,null,null,null,null,null,null,null,null,null,null,null,null,null,null,null,null,null,null,null,null,null,null,null,{"$f":"IF(tblElemente[[#This Row],[Spalte78]]=\"elem\",tblElemente[[#This Row],[Spalte23]]&\" - \"&tblElemente[[#This Row],[Spalte88]]&\" \"&tblElemente[[#This Row],[Spalte89]]&IF(tblElemente[[#This Row],[Spalte90]]=\"\",\"\",\" - \"&tblElemente[[#This Row],[Spalte90]])&IF(tblElemente[[#This Row],[Spalte91]]=\"\",\"\",\" (\"&tblElemente[[#This Row],[Spalte91]]&\")\"),\"\")","v":""}]
[null,"Категория 1","Категория 1.3","Категория 1.3.4",null,null,null,null,null,null,null,null,null,null,null,null,null,null,null,null,null,null,null,null,null,null,null,null,null,null,null,null,null,null,null,null,null,null,null,null,null,null,null,null,null,null,null,null,null,null,null,null,null,null,null,null,null,null,null,null,null,null,null,null,null,null,null,null,{"$f":"IF(tblElemente[[#This Row],[Spalte78]]=\"elem\",tblElemente[[#This Row],[Spalte23]]&\" - \"&tblElemente[[#This Row],[Spalte88]]&\" \"&tblElemente[[#This Row],[Spalte89]]&IF(tblElemente[[#This Row],[Spalte90]]=\"\",\"\",\" - \"&tblElemente[[#This Row],[Spalte90]])&IF(tblElemente[[#This Row],[Spalte91]]=\"\",\"\",\" (\"&tblElemente[[#This Row],[Spalte91]]&\")\"),\"\")","v":""}]
[null,"Категория 1","Категория 1.3","Категория 1.3.4",null,null,null,null,null,null,null,null,null,null,null,null,null,null,null,null,null,null,null,null,null,null,null,null,null,null,null,null,null,null,null,null,null,null,null,null,null,null,null,null,null,null,null,null,null,null,null,null,null,null,null,null,null,null,null,null,null,null,null,null,null,null,null,null,{"$f":"IF(tblElemente[[#This Row],[Spalte78]]=\"elem\",tblElemente[[#This Row],[Spalte23]]&\" - \"&tblElemente[[#This Row],[Spalte88]]&\" \"&tblElemente[[#This Row],[Spalte89]]&IF(tblElemente[[#This Row],[Spalte90]]=\"\",\"\",\" - \"&tblElemente[[#This Row],[Spalte90]])&IF(tblElemente[[#This Row],[Spalte91]]=\"\",\"\",\" (\"&tblElemente[[#This Row],[Spalte91]]&\")\"),\"\")","v":""}]
[null,"Категория 2","Категория 2.1","Категория 2.1.1","Категория 2.1.1.1",null,null,null,null,null,null,null,null,null,null,null,null,null,null,null,null,null,null,null,null,null,null,null,null,null,null,null,null,null,null,null,null,null,null,null,null,null,null,null,null,null,null,null,null,null,null,null,null,null,null,null,null,null,null,null,null,null,null,null,null,null,null,null,{"$f":"IF(tblElemente[[#This Row],[Spalte78]]=\"elem\",tblElemente[[#This Row],[Spalte23]]&\" - \"&tblElemente[[#This Row],[Spalte88]]&\" \"&tblElemente[[#This Row],[Spalte89]]&IF(tblElemente[[#This Row],[Spalte90]]=\"\",\"\",\" - \"&tblElemente[[#This Row],[Spalte90]])&IF(tblElemente[[#This Row],[Spalte91]]=\"\",\"\",\" (\"&tblElemente[[#This Row],[Spalte91]]&\")\"),\"\")","v":""}]
[null,"Категория 2","Категория 2.1","Категория 2.1.1","Категория 2.1.1.2","Категория 2.1.1.1",null,null,null,null,null,null,null,null,null,null,null,null,null,null,null,null,null,null,null,null,null,null,null,null,null,null,null,null,null,null,null,null,null,null,null,null,null,null,null,null,null,null,null,null,null,null,null,null,null,null,null,null,null,null,null,null,null,null,null,null,null,null,{"$f":"IF(tblElemente[[#This Row],[Spalte78]]=\"elem\",tblElemente[[#This Row],[Spalte23]]&\" - \"&tblElemente[[#This Row],[Spalte88]]&\" \"&tblElemente[[#This Row],[Spalte89]]&IF(tblElemente[[#This Row],[Spalte90]]=\"\",\"\",\" - \"&tblElemente[[#This Row],[Spalte90]])&IF(tblElemente[[#This Row],[Spalte91]]=\"\",\"\",\" (\"&tblElemente[[#This Row],[Spalte91]]&\")\"),\"\")","v":""}]
[null,"Категория 2","Категория 2.1","Категория 2.1.1","Категория 2.1.1.3",null,null,null,null,null,null,null,null,null,null,null,null,null,null,null,null,null,null,null,null,null,null,null,null,null,null,null,null,null,null,null,null,null,null,null,null,null,null,null,null,null,null,null,null,null,null,null,null,null,null,null,null,null,null,null,null,null,null,null,null,null,null,null,{"$f":"IF(tblElemente[[#This Row],[Spalte78]]=\"elem\",tblElemente[[#This Row],[Spalte23]]&\" - \"&tblElemente[[#This Row],[Spalte88]]&\" \"&tblElemente[[#This Row],[Spalte89]]&IF(tblElemente[[#This Row],[Spalte90]]=\"\",\"\",\" - \"&tblElemente[[#This Row],[Spalte90]])&IF(tblElemente[[#This Row],[Spalte91]]=\"\",\"\",\" (\"&tblElemente[[#This Row],[Spalte91]]&\")\"),\"\")","v":""}]
[null,"Категория 2","Категория 2.1","категория 2.1.2",null,null,null,null,null,null,null,null,null,null,null,null,null,null,null,null,null,null,null,null,null,null,null,null,null,null,null,null,null,null,null,null,null,null,null,null,null,null,null,null,null,null,null,null,null,null,null,null,null,null,null,null,null,null,null,null,null,null,null,null,null,null,null,null,{"$f":"IF(tblElemente[[#This Row],[Spalte78]]=\"elem\",tblElemente[[#This Row],[Spalte23]]&\" - \"&tblElemente[[#This Row],[Spalte88]]&\" \"&tblElemente[[#This Row],[Spalte89]]&IF(tblElemente[[#This Row],[Spalte90]]=\"\",\"\",\" - \"&tblElemente[[#This Row],[Spalte90]])&IF(tblElemente[[#This Row],[Spalte91]]=\"\",\"\",\" (\"&tblElemente[[#This Row],[Spalte91]]&\")\"),\"\")","v":""}]
[null,"Категория 2","Категория 2.1","категория 2.1.2",null,null,null,null,null,null,null,null,null,null,null,null,null,null,null,null,null,null,null,null,null,null,null,null,null,null,null,null,null,null,null,null,null,null,null,null,null,null,null,null,null,null,null,null,null,null,null,null,null,null,null,null,null,null,null,null,null,null,null,null,null,null,null,null,{"$f":"IF(tblElemente[[#This Row],[Spalte78]]=\"elem\",tblElemente[[#This Row],[Spalte23]]&\" - \"&tblElemente[[#This Row],[Spalte88]]&\" \"&tblElemente[[#This Row],[Spalte89]]&IF(tblElemente[[#This Row],[Spalte90]]=\"\",\"\",\" - \"&tblElemente[[#This Row],[Spalte90]])&IF(tblElemente[[#This Row],[Spalte91]]=\"\",\"\",\" (\"&tblElemente[[#This Row],[Spalte91]]&\")\"),\"\")","v":""}]
[null,"Категория 2","Категория 2.1","категория 2.1.3",null,null,null,null,null,null,null,null,null,null,null,null,null,null,null,null,null,null,null,null,null,null,null,null,null,null,null,null,null,null,null,null,null,null,null,null,null,null,null,null,null,null,null,null,null,null,null,null,null,null,null,null,null,null,null,null,null,null,null,null,null,null,null,null,{"$f":"IF(tblElemente[[#This Row],[Spalte78]]=\"elem\",tblElemente[[#This Row],[Spalte23]]&\" - \"&tblElemente[[#This Row],[Spalte88]]&\" \"&tblElemente[[#This Row],[Spalte89]]&IF(tblElemente[[#This Row],[Spalte90]]=\"\",\"\",\" - \"&tblElemente[[#This Row],[Spalte90]])&IF(tblElemente[[#This Row],[Spalte91]]=\"\",\"\",\" (\"&tblElemente[[#This Row],[Spalte91]]&\")\"),\"\")","v":""}]
[null,"Категория 2","Категория 2.2","Категория 2.2.1",null,null,null,null,null,null,null,null,null,null,null,null,null,null,null,null,null,null,null,null,null,null,null,null,null,null,null,null,null,null,null,null,null,null,null,null,null,null,null,null,null,null,null,null,null,null,null,null,null,null,null,null,null,null,null,null,null,null,null,null,null,null,null,null,{"$f":"IF(tblElemente[[#This Row],[Spalte78]]=\"elem\",tblElemente[[#This Row],[Spalte23]]&\" - \"&tblElemente[[#This Row],[Spalte88]]&\" \"&tblElemente[[#This Row],[Spalte89]]&IF(tblElemente[[#This Row],[Spalte90]]=\"\",\"\",\" - \"&tblElemente[[#This Row],[Spalte90]])&IF(tblElemente[[#This Row],[Spalte91]]=\"\",\"\",\" (\"&tblElemente[[#This Row],[Spalte91]]&\")\"),\"\")","v":""}]
[null,"Категория 2","Категория 2.2","Категория 2.2.1",null,null,null,null,null,null,null,null,null,null,null,null,null,null,null,null,null,null,null,null,null,null,null,null,null,null,null,null,null,null,null,null,null,null,null,null,null,null,null,null,null,null,null,null,null,null,null,null,null,null,null,null,null,null,null,null,null,null,null,null,null,null,null,null,{"$f":"IF(tblElemente[[#This Row],[Spalte78]]=\"elem\",tblElemente[[#This Row],[Spalte23]]&\" - \"&tblElemente[[#This Row],[Spalte88]]&\" \"&tblElemente[[#This Row],[Spalte89]]&IF(tblElemente[[#This Row],[Spalte90]]=\"\",\"\",\" - \"&tblElemente[[#This Row],[Spalte90]])&IF(tblElemente[[#This Row],[Spalte91]]=\"\",\"\",\" (\"&tblElemente[[#This Row],[Spalte91]]&\")\"),\"\")","v":""}]
[null,"Категория 2","Категория 2.2","Категория 2.2.1",null,null,null,null,null,null,null,null,null,null,null,null,null,null,null,null,null,null,null,null,null,null,null,null,null,null,null,null,null,null,null,null,null,null,null,null,null,null,null,null,null,null,null,null,null,null,null,null,null,null,null,null,null,null,null,null,null,null,null,null,null,null,null,null,{"$f":"IF(tblElemente[[#This Row],[Spalte78]]=\"elem\",tblElemente[[#This Row],[Spalte23]]&\" - \"&tblElemente[[#This Row],[Spalte88]]&\" \"&tblElemente[[#This Row],[Spalte89]]&IF(tblElemente[[#This Row],[Spalte90]]=\"\",\"\",\" - \"&tblElemente[[#This Row],[Spalte90]])&IF(tblElemente[[#This Row],[Spalte91]]=\"\",\"\",\" (\"&tblElemente[[#This Row],[Spalte91]]&\")\"),\"\")","v":""}]
[null,"Категория 2","Категория 2.3","Категория 2.3.1",null,null,null,null,null,null,null,null,null,null,null,null,null,null,null,null,null,null,null,null,null,null,null,null,null,null,null,null,null,null,null,null,null,null,null,null,null,null,null,null,null,null,null,null,null,null,null,null,null,null,null,null,null,null,null,null,null,null,null,null,null,null,null,null,{"$f":"IF(tblElemente[[#This Row],[Spalte78]]=\"elem\",tblElemente[[#This Row],[Spalte23]]&\" - \"&tblElemente[[#This Row],[Spalte88]]&\" \"&tblElemente[[#This Row],[Spalte89]]&IF(tblElemente[[#This Row],[Spalte90]]=\"\",\"\",\" - \"&tblElemente[[#This Row],[Spalte90]])&IF(tblElemente[[#This Row],[Spalte91]]=\"\",\"\",\" (\"&tblElemente[[#This Row],[Spalte91]]&\")\"),\"\")","v":""}]
[null,"Категория 2","Категория 2.3","Категория 2.3.2",null,null,null,null,null,null,null,null,null,null,null,null,null,null,null,null,null,null,null,null,null,null,null,null,null,null,null,null,null,null,null,null,null,null,null,null,null,null,null,null,null,null,null,null,null,null,null,null,null,null,null,null,null,null,null,null,null,null,null,null,null,null,null,null,{"$f":"IF(tblElemente[[#This Row],[Spalte78]]=\"elem\",tblElemente[[#This Row],[Spalte23]]&\" - \"&tblElemente[[#This Row],[Spalte88]]&\" \"&tblElemente[[#This Row],[Spalte89]]&IF(tblElemente[[#This Row],[Spalte90]]=\"\",\"\",\" - \"&tblElemente[[#This Row],[Spalte90]])&IF(tblElemente[[#This Row],[Spalte91]]=\"\",\"\",\" (\"&tblElemente[[#This Row],[Spalte91]]&\")\"),\"\")","v":""}]
[null,"Категория 2","Категория 2.3","Категория 2.3.2",null,null,null,null,null,null,null,null,null,null,null,null,null,null,null,null,null,null,null,null,null,null,null,null,null,null,null,null,null,null,null,null,null,null,null,null,null,null,null,null,null,null,null,null,null,null,null,null,null,null,null,null,null,null,null,null,null,null,null,null,null,null,null,null,{"$f":"IF(tblElemente[[#This Row],[Spalte78]]=\"elem\",tblElemente[[#This Row],[Spalte23]]&\" - \"&tblElemente[[#This Row],[Spalte88]]&\" \"&tblElemente[[#This Row],[Spalte89]]&IF(tblElemente[[#This Row],[Spalte90]]=\"\",\"\",\" - \"&tblElemente[[#This Row],[Spalte90]])&IF(tblElemente[[#This Row],[Spalte91]]=\"\",\"\",\" (\"&tblElemente[[#This Row],[Spalte91]]&\")\"),\"\")","v":""}]
[null,"Категория 2","Категория 2.3","Категория 2.3.3",null,null,null,null,null,null,null,null,null,null,null,null,null,null,null,null,null,null,null,null,null,null,null,null,null,null,null,null,null,null,null,null,null,null,null,null,null,null,null,null,null,null,null,null,null,null,null,null,null,null,null,null,null,null,null,null,null,null,null,null,null,null,null,null,{"$f":"IF(tblElemente[[#This Row],[Spalte78]]=\"elem\",tblElemente[[#This Row],[Spalte23]]&\" - \"&tblElemente[[#This Row],[Spalte88]]&\" \"&tblElemente[[#This Row],[Spalte89]]&IF(tblElemente[[#This Row],[Spalte90]]=\"\",\"\",\" - \"&tblElemente[[#This Row],[Spalte90]])&IF(tblElemente[[#This Row],[Spalte91]]=\"\",\"\",\" (\"&tblElemente[[#This Row],[Spalte91]]&\")\"),\"\")","v":""}]
[null,"Категория 2","Категория 2.3","Категория 2.3.4",null,null,null,null,null,null,null,null,null,null,null,null,null,null,null,null,null,null,null,null,null,null,null,null,null,null,null,null,null,null,null,null,null,null,null,null,null,null,null,null,null,null,null,null,null,null,null,null,null,null,null,null,null,null,null,null,null,null,null,null,null,null,null,null,{"$f":"IF(tblElemente[[#This Row],[Spalte78]]=\"elem\",tblElemente[[#This Row],[Spalte23]]&\" - \"&tblElemente[[#This Row],[Spalte88]]&\" \"&tblElemente[[#This Row],[Spalte89]]&IF(tblElemente[[#This Row],[Spalte90]]=\"\",\"\",\" - \"&tblElemente[[#This Row],[Spalte90]])&IF(tblElemente[[#This Row],[Spalte91]]=\"\",\"\",\" (\"&tblElemente[[#This Row],[Spalte91]]&\")\"),\"\")","v":""}]
[null,"Категория 2","Категория 2.3","Категория 2.3.4",null,null,null,null,null,null,null,null,null,null,null,null,null,null,null,null,null,null,null,null,null,null,null,null,null,null,null,null,null,null,null,null,null,null,null,null,null,null,null,null,null,null,null,null,null,null,null,null,null,null,null,null,null,null,null,null,null,null,null,null,null,null,null,null,{"$f":"IF(tblElemente[[#This Row],[Spalte78]]=\"elem\",tblElemente[[#This Row],[Spalte23]]&\" - \"&tblElemente[[#This Row],[Spalte88]]&\" \"&tblElemente[[#This Row],[Spalte89]]&IF(tblElemente[[#This Row],[Spalte90]]=\"\",\"\",\" - \"&tblElemente[[#This Row],[Spalte90]])&IF(tblElemente[[#This Row],[Spalte91]]=\"\",\"\",\" (\"&tblElemente[[#This Row],[Spalte91]]&\")\"),\"\")","v":""}]